Cogmind - Beta 10.1 @@@ ROGUE MODE // 2020.10.28 @ 22:21:07 Player: Atherys Result: Destroyed by as-27822 with Assembled Rifle Performance ------------- Evolutions (0) 0 Regions Visited (0) 0 Robots Destroyed (4) 20 Value Destroyed (7) 7 Prototype IDs (0) 0 Alien Tech Used (0) 0 Bonus (0) 0 TOTAL SCORE: 27 Bonus ------- None Cogmind --------- Core Integrity 0/250 Matter 281/300 Energy 100/100 System Corruption 0% Temperature Cool (0) Movement Core (100) Ox1 Location -11/Scrapyard Parts ------- > --- POWER (1) -------- (None) > --- PROPULSION (2) --- (None) > --- UTILITY (2) ------ Small Storage Unit > --- WEAPON (2) ------- (None) > --- INVENTORY (6) ---- Light Ion Engine Peak State ------------ > --- POWER ------------ Ion Engine > --- PROPULSION ------- Light Treads Light Treads > --- UTILITY ---------- Small Storage Unit > --- WEAPON ----------- Small Laser Assault Rifle > --- INVENTORY -------- (None) [Rating: 6] Favorites ----------- Power Ion Engine Engine Ion Engine Propulsion Light Treads Treads Light Treads Utility Small Storage Unit Storage Small Storage Unit Weapon Assault Rifle Energy Gun Small Laser Ballistic Gun Assault Rifle Special Weapon Mining Laser Build | -11 ------- Run | Scr Slots Evolved . | . Power . | . Propulsion . | . Utility . | . Weapon . | . Parts Attached 8 | 8 Power 1 | 1 Engine 1 | 1 Core . | . Reactor . | . Propulsion 2 | 2 Treads 2 | 2 Leg . | . Wheel . | . Hover . | . Flight . | . Utility 1 | 1 Device . | . Storage 1 | 1 Processor . | . Hackware . | . Protection . | . Artifact . | . Weapon 4 | 4 Energy Gun 1 | 1 Energy Cannon . | . Ballistic Gun 2 | 2 Ballistic Cannon . | . Launcher . | . Special Weapon 1 | 1 Impact Weapon . | . Slashing Weapon . | . Piercing Weapon . | . Special Melee Weapon . | . Unidentified Prototypes . | . Parts Lost 7 | 7 Power 1 | 1 Propulsion 2 | 2 Utility . | . Weapon 4 | 4 Highest Loss Streak 7 | 7 Average Slot Usage (%) . | . Naked Turns . | . Heaviest Build 12 | 12 Greatest Support 40 | 40 Greatest Overweight (x) 3 | 3 Average Overweight (x) . | . Largest Inventory Capacity 6 | 6 Average Capacity 5 | 5 Most Carried 1 | 1 Average Carried . | . Final Capacity 6 | 6 Final Carried 1 | 1 Class Distribution -------------------- None Dominant Class ---------------- None Resources | -11 ----------- Run | Scr Matter Collected 254 | 254 Remotely . | . Salvage Created 30 | 30 Parts 4 | 4 Haulers Intercepted . | . Recyclers Shooed . | . Parts Field Recycled . | . Retrieved Matter . | . Parts Self-Destructed . | . Prevented . | . Kills | -11 ------- Run | Scr Combat Hostiles Destroyed 3 | 3 Guns 3 | 3 Classes Destroyed 2 | 2 Tunneler 1 | 1 Assembled 3 | 3 Best Kill Streak 4 | 4 Combat Bots Only 3 | 3 Max Kills in Single Turn 1 | 1 Gunslinging . | . Exploded . | . Melee . | . Uniques/NPCs Destroyed . | . Combat | -11 -------- Run | Scr Damage Taken 904 | 904 Core 255 | 255 Absorbed by Shields . | . Core Remaining (%) . | . Volleys Fired 11 | 11 Largest 2 | 2 Hottest 60 | 60 Shots Fired 18 | 18 Gun 18 | 18 Cannon . | . Launcher . | . Special . | . Kinetic 12 | 12 Thermal 6 | 6 Explosive . | . Electromagnetic . | . Robot Hit Streak 2 | 2 Robot Miss Streak 2 | 2 Penetration Max . | . Secondary Targets 1 | 1 Max Gunslinging Chain 1 | 1 Shots Hit Robots 9 | 9 Core Hits 5 | 5 Critical Hits . | . Critical Kills . | . Critical Parts Destroyed . | . Melee Attacks . | . Impact . | . Slashing . | . Piercing . | . Sneak Attacks . | . Combat Hostiles . | . Follow-up Attacks . | . Damage Inflicted 111 | 111 Guns 111 | 111 Cannons . | . Explosions . | . Melee . | . Ramming . | . Kinetic 57 | 57 Thermal 54 | 54 Explosive . | . Electromagnetic . | . Impact . | . Slashing . | . Piercing . | . Highest Corruption . | . Average Corruption . | . Corruption Purged . | . Overload Shots . | . Overflow Damage . | . Projectiles . | . Explosions . | . Melee . | . Knockbacks . | . Impact . | . Kinetic . | . Secondary . | . Self-Inflicted Damage . | . Shots . | . Rammed . | . Targets Rammed . | . Kicked . | . Crushed . | . Highest Temperature 60 | 60 Average Temperature 24 | 24 Received Heat Transfer 320 | 320 Siege Activations . | . Robots Corrupted . | . Combat Hostiles . | . Parts Fried . | . Impact Corruptions . | . Robots Melted . | . Combat Hostiles . | . Parts Melted . | . Heat Transferred 125 | 125 Parts Sabotaged . | . Parts Stolen . | . Parts Stripped . | . Power Chain Reactions . | . Missiles Intercepted . | . Alert | -11 ------- Run | Scr Peak Influence 5 | 5 Initial . | . Average . | . Maximum Alert Level . | . Low Security (%) 100 | 100 Level 1 . | . Level 2 . | . Level 3 . | . Level 4 . | . Level 5 . | . High Security . | . Max Security . | . Squads Dispatched . | . Investigation . | . Extermination . | . Reinforcement . | . Assault . | . Garrison . | . Intercept . | . Construction Impeded . | . Haulers Reinforced . | . Stealth | -11 --------- Run | Scr Distress Signals . | . Communications Jammed . | . Distress Signals . | . Times Spotted 11 | 11 Peak Tracking Total 8 | 8 Tactical Retreats . | . Traps | -11 ------- Run | Scr Traps Triggered . | . Indirectly . | . Trap Hack Attempts . | . Triggered . | . Disarmed . | . Reprogrammed . | . Reused . | . Traps Extracted . | . Installed . | . Triggered . | . Machines | -11 ---------- Run | Scr Machines Disabled . | . Max in Single Turn . | . Machines Sabotaged . | . Garrisons Compromised . | . Overloaded Fab Kills . | . Fab Network Shutdowns . | . Hacking | -11 --------- Run | Scr Machines Accessed . | . Terminals . | . Fabricators . | . Repair Stations . | . Recycling Units . | . Scanalyzers . | . Garrison Access . | . Total Hacks . | . Successful . | . Failed . | . Catastrophic . | . Database Lockouts . | . Manual . | . Terminals . | . Fabricators . | . Repair Stations . | . Recycling Units . | . Scanalyzers . | . Garrison Access . | . Terminal Hacks . | . Fabricator Hacks . | . Repair Station Hacks . | . Recycling Unit Hacks . | . Scanalyzer . | . Garrison Access Hacks . | . Unauthorized Hacks . | . Terminals . | . Fabricators . | . Repair Stations . | . Recycling Units . | . Scanalyzers . | . Garrison Access . | . Data Cores Recovered . | . Used . | . Hacking Detections . | . Full Trace Events . | . Feedback Events . | . Feedback Blocked . | . Robot Schematics Acquired . | . Robots Built . | . Matter . | . Time . | . Total Robot Build Rating . | . Part Schematics Acquired . | . Parts Built . | . Matter . | . Time . | . Total Part Build Rating . | . Parts Repaired . | . Time . | . Parts Recycled . | . Recycled Matter . | . Retrieved Matter . | . Retrieved Components . | . Parts Scanalyzed . | . Part Schematics Acquired . | . Parts Damaged . | . Bothacking | -11 ------------ Run | Scr Used RIF Installer . | . Robots Hacked . | . Non-combat . | . Combat . | . Robot Hacks Applied . | . Relay Couplers Released . | . Robots Rewired . | . Allies Hacked . | . Hacks Repelled . | . Allies | -11 -------- Run | Scr Total Allies . | . Largest Group . | . Highest-Rated Group . | . Highest-Rated Ally . | . Total Orders . | . Ally Attacks . | . Total Damage . | . Kills . | . Allies Corrupted . | . Allies Melted . | . Intel | -11 ------- Run | Scr Robot Analysis Total . | . Derelict Logs Recovered . | . Drone Launches . | . Drone Recoveries . | . Exploration | -11 ------------- Run | Scr Turns Passed 2135 | 2135 Spaces Moved 384 | 384 Core 22 | 22 Treads 362 | 362 Legs . | . Wheels . | . Hover . | . Flight . | . Fastest Speed 50 | 50 Average Speed 156 | 156 Slowest Speed 200 | 200 Overloaded Moves . | . Propulsion Burnouts . | . Robots Hopped . | . Cave-ins Triggered . | . Exploration Rate (%) 47 | 47 Regions Visited . Branch Regions . Pre-discovered Areas . | . Known Exits Taken . | . Unknown Exits Taken . | . Scrap Searched . | . Spaces Dug . | . Terrain Destroyed . | . Melee . | . Projectile . | . AOE . | . Terrain Rammed . | . Walls Destroyed . | . Machines Disabled . | . Actions | -11 --------- Run | Scr Total 1896 | 1896 Wait 1492 | 1492 Move 384 | 384 Hop . | . Pick Up 1 | 1 Fast Attach 8 | 8 Attach . | . Detach . | . Swap . | . Drop . | . Fire 11 | 11 Melee . | . Ram . | . Kick . | . Crush . | . Escape Stasis . | . Rewire . | . Trap . | . Miscellaneous . | . Route ------- -11/Scrapyard (discovered 1 exit: [*Mat]) History --------- Turn | Location | Event 44 | -11/Scrapyard | Discovered new exit (range 12) 1975 | -11/Scrapyard | Assembled infested the area 2114 | -11/Scrapyard | Core integrity fell below 50% 2126 | -11/Scrapyard | Core integrity fell below 20% 2136 | -11/Scrapyard | Destroyed by as-27822 with Assembled Rifle Last Messages --------------- 02100_ Sml. Laser destroyed. 02107_ Lgt. Treads destroyed. 02108_ Acquired Lgt. Assault Rifle. 02109_ as-36332 destroyed. 02109_ R-06 Scavenger collects Mining Laser. 02111_ Assault Rifle destroyed. 02113_ R-06 Scavenger collects Wheel. 02116_ R-06 Scavenger destroyed. 02117_ Lgt. Treads destroyed. 02119_ Lgt. Assault Rifle destroyed. 02121_ Acquired Mining Laser. 02122_ Ion Engine destroyed. 02122_ Mining Laser destroyed. 02122_ Acquired 60 matter. 02126_ K-01 Serf collects debris. 02128_ as-77248 sneak attacks. 02128_ K-01 Serf destroyed. 02129_ K-01 Serf collects debris. 02134_ K-01 Serf destroyed. 02135_ K-01 Serf Wheel severed. Map ----- +----------------------------------------------------+ | ??# # ####????????????# #???????????????? | | ??# # ##### #??????# #???????????????? | | ??# # #??????# #???????????????? | | ??########### #??????# #???????????????? | | ????????????######## #??????# #???????????????? | | ?????????????######## ##??????# #???????????????? | | ?????????????# # ##### # #???????????????? | | ?????????????# # # # #???????????????? | | ?????????????# # #??????????????## | | ?????????????# # # # #????????????? | | ?????????????# # # # #????????????# | | ?????????????# # #?####### #????????????# | | ?????????????######## #??###### ####?????????# | | ????????????????????# #??# #?????????# | | ????????????????????# #??# #??######## | | ????????????????????# #??# #??# # | | ????????????????????# #??# #??# # | | ????????????????????# #??# #??# # | | ?????????????????#### #### #??# # | | ????##########???# # #??# # | | ????# #???# # #???? ?? | | ????# #???# ### ############# ###### | | # ### = = #####a =k | | == ! %a aa%! | | a a a ### ###### ###### ###### | | ##### = % #####a <@# ???# ??# ???? | | ????# *%!%!#???# # ?# # ?? | | ????# ! ! #???########## # # #? | | ????#### ####????????????# # # #? | | ???????# #???????????????# # # #? | | ???????# #????????????????# # # #? | | ??????? ?????????????????# # ########? | | ?????? #??????????????????# ############### | | ????? ???????????????????# #?????# | | ???? ????????????????????##########?????# | | ??? ???????????????????????????????????# | | ??###????????????????????????????????????# | | ?????????????????????????????????????????######### | | ??????????????????????????????????????????####?### | | ??????????????????????????????????????????# ## | | ??????????????????????????????????????????# | | ??????????????????????????????????????????# | | ??????????????????????????????????????????# | | ??????????????????????????????????????????# | | ??????????????????????????????????????????# | | ??????????????????????????????????????????# | | ??????????????????????????????????????????# | | ??????????????????????????????????????????# | | ??????????????????????????????????????????######## | | ?????????????????????????????????????????????????? | +----------------------------------------------------+ Best States ------------- Heat Dissipation 25 Energy Generation 10 Energy Capacity 250 Matter Stores 281 Matter Capacity 300 Sight Range 16 Terrain Scan Density 10 Evasion (%) 40 Recoil Reduction 2 Item Schematics ----------------- None Robot Schematics ------------------ None Fabricated ------------ Nothing Alien Tech Used ----------------- None Achievements -------------- Curiosity Killed The Cat Challenges ------------ None Game ------ Seed DroneTachyonSword Manual? 0 Play Time 00:09:12 Cumulative 14.2 hours Start 2020.10.28 @ 22:16:24 End 2020.10.28 @ 22:21:07 Sessions 0 Manual Loads 0 Difficulty Rogue Special Mode None Game No. 22 Rogue 22 Adventurer 0 Explorer 0 Win Type - Total 0 Types 0/0/0/0/0/0/0/0/0 Lore% 19 Gallery% 20 Achievement% 18 Wizard Run 0 Options --------- ASCII 0 Keyboard 0 Movement Mouse Keybinds 0 Fullscreen 2 Font 18/SmallcapsGlow Map View 76x50 Tactical HUD 1 Map Filters NONE Filters NONE Steam X RUN: f4b96dc9-29dd-48fd-af26-3174102460b5